fUST/lending_fUST_20240929
["ID","MTS","AMOUNT","RATE_DAILY","PERIOD"]
[339422641,1727603568336,-704.84,0.00021095,2]
[339422642,1727603568345,-515.27118119,0.00021095,2]
[339422643,1727603568356,-637.28,0.00021095,2]
[339422644,1727603568367,-500.0,0.00021095,2]
[339422645,1727603568377,-500.0,0.00021095,2]
[339422646,1727603568388,-890.76,0.00021095,2]
[339422647,1727603568398,-672.01,0.00021095,2]
[339422648,1727603568407,-500.0,0.00021095,2]
[339422649,1727603568418,-500.0,0.00021095,2]
[339422650,1727603568429,-500.0,0.00021095,2]
[339422651,1727603568440,-500.0,0.00021095,2]
[339422652,1727603568450,-1041.41,0.00021095,2]
[339422653,1727603568461,-500.0,0.00021095,2]
[339422654,1727603568471,-500.0,0.00021095,2]
[339422655,1727603568482,-574.73,0.00021095,2]
[339422656,1727603568492,-500.0,0.00021095,2]
[339422657,1727603568501,-652.65,0.00021095,2]
[339422658,1727603568512,-500.0,0.00021095,2]
[339422659,1727603568521,-500.0,0.00021095,2]
[339422660,1727603568531,-500.0,0.00021095,2]
[339422661,1727603568540,-542.39,0.00021095,2]
[339422662,1727603568551,-500.0,0.00021095,2]
[339422663,1727603568560,-500.0,0.00021095,2]
[339422664,1727603568570,-500.0,0.00021095,2]
[339422665,1727603568580,-510.56,0.00021095,2]
[339422666,1727603568591,-500.0,0.00021095,2]
[339422667,1727603568600,-541.84,0.00021095,2]
[339422668,1727603568610,-500.0,0.00021095,2]
[339422669,1727603568619,-500.0,0.00021095,2]
[339422670,1727603568629,-522.90831259,0.00021095,2]
[339422671,1727603568639,-503.08,0.00021095,2]
[339422672,1727603568649,-1583.99,0.00021095,2]
[339422673,1727603568659,-500.0,0.00021095,2]
[339422674,1727603568670,-500.0,0.00021095,2]
[339422675,1727603568680,-500.0,0.00021095,2]
[339422676,1727603568690,-500.0,0.00021095,2]
[339422677,1727603568700,-500.0,0.00021095,2]
[339422678,1727603568710,-507.38,0.00021095,2]
[339422679,1727603568719,-500.0,0.00021095,2]
[339422680,1727603568729,-511.47415529,0.00021095,2]
[339422681,1727603568739,-500.0,0.00021095,2]
[339422682,1727603568748,-500.0,0.00021095,2]
[339422683,1727603568758,-500.0,0.00021095,2]
[339422684,1727603568768,-563.66,0.00021095,2]
[339422685,1727603568777,-500.0,0.00021095,2]
[339422686,1727603568787,-574.96,0.00021095,2]
[339422687,1727603568801,-500.0,0.00021095,2]
[339422688,1727603568810,-500.0,0.00021095,2]
[339422689,1727603568820,-500.0,0.00021095,2]
[339422690,1727603568830,-500.0,0.00021095,2]
[339422691,1727603568841,-500.0,0.00021095,2]
[339422692,1727603568851,-632.13,0.00021095,2]
[339422693,1727603568861,-500.0,0.00021095,2]
[339422694,1727603568872,-500.0,0.00021095,2]
[339422695,1727603568881,-537.86,0.00021095,2]
[339422696,1727603568891,-500.0,0.00021095,2]
[339422697,1727603568900,-500.0,0.00021095,2]
[339422698,1727603568910,-500.0,0.00021095,2]
[339422699,1727603568919,-500.0,0.00021095,2]
[339422700,1727603568929,-3333.33,0.00021095,2]
[339422701,1727603568938,-1223.77,0.00021095,2]
[339422702,1727603568949,-690.51,0.00021095,2]
[339422703,1727603568959,-539.88,0.00021095,2]
[339422704,1727603568970,-805.3,0.00021095,2]
[339422705,1727603568979,-500.0,0.00021095,2]
[339422706,1727603568988,-1406.25,0.00021095,2]
[339422707,1727603568999,-500.0,0.00021095,2]
[339422708,1727603569008,-500.0,0.00021095,2]
[339422709,1727603569018,-533.30786547,0.00021095,2]
[339422710,1727603569027,-500.0,0.00021095,2]
[339422711,1727603569037,-500.0,0.00021095,2]
[339422712,1727603569047,-500.0,0.00021095,2]
[339422713,1727603569057,-500.0,0.00021095,2]
[339422714,1727603569067,-500.0,0.00021095,2]
[339422715,1727603569078,-666.93,0.00021095,2]
[339422716,1727603569088,-500.0,0.00021095,2]
[339422717,1727603569098,-500.0,0.00021095,2]
[339422718,1727603569108,-500.0,0.00021095,2]
[339422719,1727603569117,-500.0,0.00021095,2]
[339422720,1727603569127,-250.0,0.00021095,2]
[339422721,1727603569136,-500.0,0.00021095,2]
[339422722,1727603569147,-500.0,0.00021095,2]
[339422723,1727603569157,-320.98389913,0.00021095,2]
[339422724,1727603569166,-500.0,0.00021095,2]
[339422725,1727603569176,-733.04,0.00021095,2]
[339422726,1727603569186,-500.0,0.00021095,2]
[339422727,1727603569196,-500.0,0.00021095,2]
[339422728,1727603569206,-1093.72,0.00021095,2]
[339422729,1727603569216,-500.0,0.00021095,2]
[339422730,1727603569226,-651.51,0.00021095,2]
[339422731,1727603569235,-500.0,0.00021095,2]
[339422732,1727603569245,-500.0,0.00021095,2]
[339422733,1727603569255,-578.1,0.00021095,2]
[339422734,1727603569264,-500.0,0.00021095,2]
[339422735,1727603569273,-500.0,0.00021095,2]
[339422736,1727603569283,-500.0,0.00021095,2]
[339422737,1727603569292,-500.0,0.00021095,2]
[339422738,1727603569302,-500.0,0.00021095,2]
[339422739,1727603569312,-563.42,0.00021095,2]
[339422740,1727603569321,-500.0,0.00021095,2]
[339422741,1727603569330,-500.0,0.00021095,2]
[339422742,1727603569341,-500.0,0.00021095,2]
[339422743,1727603569351,-500.0,0.00021095,2]
[339422744,1727603569360,-500.0,0.00021095,2]
[339422745,1727603569370,-523.16,0.00021095,2]
[339422746,1727603569380,-500.0,0.00021095,2]
[339422747,1727603569390,-417.24283665,0.00021095,2]
[339422748,1727603569400,-493.48040954,0.00021095,2]
[339422749,1727603569410,-410.43730388,0.00021095,2]
[339422750,1727603569420,-500.0,0.00021095,2]
[339422751,1727603569430,-500.0,0.00021095,2]
[339422752,1727603569440,-635.47,0.00021095,2]
[339422753,1727603569450,-500.0,0.00021095,2]
[339422754,1727603569460,-500.0,0.00021095,2]
[339422755,1727603569469,-500.0,0.00021095,2]
[339422756,1727603569479,-836.64,0.00021095,2]
[339422757,1727603569488,-629.28,0.00021095,2]
[339422758,1727603569498,-500.0,0.00021095,2]
[339422759,1727603569509,-500.0,0.00021095,2]
[339422760,1727603569518,-500.0,0.00021095,2]
[339422761,1727603569528,-500.0,0.00021095,2]
[339422762,1727603569538,-500.0,0.00021095,2]
[339422763,1727603569547,-500.0,0.00021095,2]
[339422764,1727603569558,-500.0,0.00021095,2]
[339422765,1727603569568,-500.0,0.00021095,2]
[339422766,1727603569578,-506.65,0.00021095,2]
[339422767,1727603569589,-687.06,0.00021095,2]
[339422768,1727603569812,-500.0,0.00021095,2]
[339422769,1727603569823,-685.14,0.00021095,2]
[339422770,1727603569834,-500.0,0.00021095,2]
[339422771,1727603569845,-1003.48,0.00021095,2]
[339422772,1727603569855,-500.0,0.00021095,2]
[339422773,1727603569865,-500.0,0.00021095,2]
[339422774,1727603569877,-956.49,0.00021095,2]
[339422775,1727603569887,-500.0,0.00021095,2]
[339422776,1727603569898,-672.19,0.00021095,2]
[339422777,1727603569908,-500.0,0.00021095,2]
[339422778,1727603569919,-500.0,0.00021095,2]
[339422779,1727603569930,-500.0,0.00021095,2]
[339422780,1727603569941,-692.51,0.00021095,2]
[339422781,1727603569952,-500.0,0.00021095,2]
[339422782,1727603569964,-500.0,0.00021095,2]
[339422783,1727603569974,-330.45970823,0.00021095,2]
[339422784,1727603569984,-500.0,0.00021095,2]
[339422785,1727603569996,-1860.39,0.00021095,2]
[339422786,1727603570008,-757.46,0.00021095,2]
[339422787,1727603570019,-676.06,0.00021095,2]
[339422788,1727603570029,-500.0,0.00021095,2]
[339422789,1727603570041,-500.0,0.00021095,2]
[339422790,1727603570054,-500.0,0.00021095,2]
[339422791,1727603570065,-990.62,0.00021095,2]
[339422792,1727603570075,-500.0,0.00021095,2]
[339422793,1727603570086,-500.0,0.00021095,2]
[339422794,1727603570095,-500.0,0.00021095,2]
[339422795,1727603570105,-595.36,0.00021095,2]
[339422796,1727603570116,-500.0,0.00021095,2]
[339422797,1727603570128,-500.0,0.00021095,2]
[339422798,1727603570138,-500.0,0.00021095,2]
[339422799,1727603570148,-865.69,0.00021095,2]
[339422800,1727603570160,-500.0,0.00021095,2]
[339422801,1727603570172,-500.0,0.00021095,2]
[339422802,1727603570183,-500.0,0.00021095,2]
[339422803,1727603570196,-677.83,0.00021095,2]
[339422804,1727603570206,-500.0,0.00021095,2]
[339422805,1727603570217,-616.29,0.00021095,2]
[339422806,1727603570227,-500.0,0.00021095,2]
[339422807,1727603570238,-500.0,0.00021095,2]
[339422808,1727603570248,-500.0,0.00021095,2]
[339422809,1727603570260,-500.0,0.00021095,2]
[339422810,1727603570271,-707.0,0.00021095,2]
[339422811,1727603570282,-578.16,0.00021095,2]
[339422812,1727603570294,-1727.88,0.00021095,2]
[339422813,1727603570305,-500.0,0.00021095,2]
[339422814,1727603570317,-500.0,0.00021095,2]
[339422815,1727603570328,-422.53570156,0.00021095,2]
[339422816,1727603570337,-500.0,0.00021095,2]
[339422817,1727603570349,-1110.92,0.00021095,2]
[339422818,1727603570360,-594.03,0.00021095,2]
[339422819,1727603570371,-590.19,0.00021095,2]
[339422820,1727603570383,-515.23239244,0.00021095,2]
[339422821,1727603570394,-500.0,0.00021095,2]
[339422822,1727603570405,-500.0,0.00021095,2]
[339422823,1727603570415,-500.0,0.00021095,2]
[339422824,1727603570424,-500.0,0.00021095,2]
[339422825,1727603570436,-500.0,0.00021095,2]
[339422826,1727603570445,-830.63,0.00021095,2]
[339422827,1727603570455,-500.0,0.00021095,2]
[339422828,1727603570466,-506.3,0.00021095,2]
[339422829,1727603570476,-594.43,0.00021095,2]
[339422830,1727603570487,-828.86,0.00021095,2]
[339422831,1727603570497,-2841.86,0.00021095,2]
[339422832,1727603570506,-500.0,0.00021095,2]
[339422833,1727603570516,-528.25,0.00021095,2]
[339422834,1727603570528,-1889.69,0.00021095,2]
[339422835,1727603570540,-500.0,0.00021095,2]
[339422836,1727603570551,-1014.76,0.00021095,2]
[339422837,1727603570561,-500.0,0.00021095,2]
[339422838,1727603570571,-500.0,0.00021095,2]
[339422839,1727603570582,-500.0,0.00021095,2]
[339422840,1727603570593,-500.0,0.00021095,2]
[339422841,1727603570603,-890.12,0.00021095,2]
[339422842,1727603570614,-500.0,0.00021095,2]
[339422843,1727603570624,-500.0,0.00021095,2]
[339422844,1727603570635,-500.0,0.00021095,2]
[339422845,1727603570646,-500.0,0.00021095,2]
[339422846,1727603570658,-500.0,0.00021095,2]
[339422847,1727603570669,-500.0,0.00021095,2]
[339422848,1727603570679,-500.0,0.00021095,2]
[339422849,1727603570688,-779.79,0.00021095,2]
[339422850,1727603570698,-603.33,0.00021095,2]
[339422851,1727603570710,-500.0,0.00021095,2]
[339422852,1727603570721,-569.86,0.00021095,2]
[339422853,1727603570731,-500.0,0.00021095,2]
[339422854,1727603570742,-500.0,0.00021095,2]
[339422855,1727603570753,-500.0,0.00021095,2]
[339422856,1727603570764,-663.18,0.00021095,2]
[339422857,1727603570775,-500.0,0.00021095,2]
[339422858,1727603570786,-500.0,0.00021095,2]
[339422859,1727603570800,-500.0,0.00021095,2]
[339422860,1727603570811,-500.0,0.00021095,2]
[339422861,1727603570821,-500.0,0.00021095,2]
[339422862,1727603570830,-281.86031854,0.00021095,2]
[339422863,1727603570839,-728.26,0.00021095,2]
[339422864,1727603570851,-500.0,0.00021095,2]
[339422865,1727603570864,-500.0,0.00021095,2]
[339422866,1727603570875,-500.0,0.00021095,2]
[339422867,1727603570886,-1894.2,0.00021095,2]
[339422868,1727603570897,-551.28,0.00021095,2]
[339422869,1727603570908,-500.0,0.00021095,2]
[339422870,1727603570919,-500.0,0.00021095,2]
[339422871,1727603570929,-840.49,0.00021095,2]
[339422872,1727603570941,-500.0,0.00021095,2]
[339422873,1727603570951,-817.32,0.00021095,2]
[339422874,1727603570962,-518.88,0.00021095,2]
[339422875,1727603570971,-500.0,0.00021095,2]
[339422876,1727603570981,-544.1,0.00021095,2]
[339422877,1727603570992,-500.0,0.00021095,2]
[339422878,1727603571003,-1517.15,0.00021095,2]
[339422879,1727603571013,-1770.33,0.00021095,2]
[339422880,1727603571022,-500.0,0.00021095,2]
[339422881,1727603571032,-563.27,0.00021095,2]
[339422882,1727603571041,-500.0,0.00021095,2]
[339422883,1727603571050,-500.0,0.00021095,2]
[339422884,1727603571060,-658.78,0.00021095,2]
[339422885,1727603571070,-793.0,0.00021095,2]
[339422886,1727603571080,-500.0,0.00021095,2]
[339422887,1727603571091,-816.02,0.00021095,2]
[339422888,1727603571102,-500.0,0.00021095,2]
[339422889,1727603571112,-500.0,0.00021095,2]
[339422890,1727603571122,-500.0,0.00021095,2]
[339422891,1727603571131,-500.0,0.00021095,2]
[339422892,1727603571141,-365.76748556,0.00021095,2]
[339422893,1727603571150,-500.0,0.00021095,2]
[339422894,1727603571159,-500.0,0.00021095,2]
[339422895,1727603571168,-522.78,0.00021095,2]
[339422896,1727603571177,-673.9,0.00021095,2]
[339422897,1727603571187,-582.94,0.00021095,2]
[339422898,1727603571197,-1269.53,0.00021095,2]
[339422899,1727603571206,-500.0,0.00021095,2]
[339422900,1727603571216,-983.6,0.00021095,2]
[339422901,1727603571226,-500.0,0.00021095,2]
[339422902,1727603571236,-500.0,0.00021095,2]
[339422903,1727603571246,-500.0,0.00021095,2]
[339422904,1727603571256,-634.9,0.00021095,2]
[339422905,1727603571266,-884.39,0.00021095,2]
[339422906,1727603571276,-318.62992782,0.00021095,2]
[339422907,1727603571285,-500.0,0.00021095,2]
[339422908,1727603571295,-500.0,0.00021095,2]
[339422909,1727603571305,-541.91,0.00021095,2]
[339422910,1727603571314,-500.0,0.00021095,2]
[339422911,1727603571325,-537.32,0.00021095,2]
[339422912,1727603571335,-500.0,0.00021095,2]
[339422913,1727603571345,-515.37,0.00021095,2]
[339422914,1727603571355,-521.86,0.00021095,2]
[339422915,1727603571364,-500.0,0.00021095,2]
[339422916,1727603571374,-570.19,0.00021095,2]
[339422917,1727603571383,-582.28,0.00021095,2]
[339422918,1727603571394,-595.6,0.00021095,2]
[339422919,1727603571404,-230.58908489,0.00021095,2]
[339422920,1727603571414,-514.45,0.00021095,2]
[339422921,1727603571423,-1036.21,0.00021095,2]
[339422922,1727603571434,-1058.66,0.00021095,2]
[339422923,1727603571444,-557.02,0.00021095,2]
[339422924,1727603571454,-1629.84,0.00021095,2]
[339422925,1727603571464,-200.0,0.00021095,2]
[339422926,1727603571474,-619.24,0.00021095,2]
[339422927,1727603571486,-1619.76,0.00021095,2]
[339422928,1727603571496,-717.59,0.00021095,2]
[339422929,1727603571507,-500.0,0.00021095,2]
[339422930,1727603571518,-500.0,0.00021095,2]
[339422931,1727603571530,-500.0,0.00021095,2]
[339422932,1727603571540,-19498.11,0.00021095,2]
[339422933,1727603571551,-500.0,0.00021095,2]
[339422934,1727603571561,-500.0,0.00021095,2]
[339422935,1727603571571,-606.66163092,0.00021095,2]
[339422936,1727603571586,-500.0,0.00021095,2]
[339422937,1727603571612,-509.55,0.00021095,2]
[339422938,1727603571632,-500.0,0.00021095,2]
[339422939,1727603571655,-2421.16,0.00021095,2]
[339422940,1727603571677,-2940.12,0.00021095,2]
[339422941,1727603571698,-500.0,0.00021095,2]
[339422942,1727603571720,-500.0,0.00021095,2]
[339422943,1727603571736,-500.0,0.00021095,2]
[339422944,1727603571755,-1283.44,0.00021095,2]
[339422945,1727603571779,-500.0,0.00021095,2]
[339422946,1727603571799,-500.0,0.00021095,2]
[339422947,1727603571819,-500.0,0.00021095,2]
[339422948,1727603571838,-500.0,0.00021095,2]
[339422949,1727603571858,-950.67,0.00021095,2]
[339422950,1727603571875,-1372.58,0.00021095,2]
[339422951,1727603571890,-687.65,0.00021095,2]
[339422952,1727603571907,-500.0,0.00021095,2]
[339422953,1727603571923,-500.0,0.00021095,2]
[339422954,1727603571939,-907.2,0.00021095,2]
[339422955,1727603571955,-500.0,0.00021095,2]
[339422956,1727603571970,-1445.57,0.00021095,2]
[339422957,1727603571985,-500.0,0.00021095,2]
[339422958,1727603572000,-542.45,0.00021095,2]
[339422959,1727603572017,-500.0,0.00021095,2]
[339422960,1727603572034,-500.0,0.00021095,2]
[339422961,1727603572053,-500.0,0.00021095,2]
[339422962,1727603572070,-571.7395789,0.00021095,2]
[339422963,1727603572086,-500.0,0.00021095,2]
[339422964,1727603572102,-500.0,0.00021095,2]
[339422965,1727603572120,-500.0,0.00021095,2]
[339422966,1727603572137,-500.0,0.00021095,2]
[339422967,1727603572151,-600.51,0.00021095,2]
[339422968,1727603572170,-297.46267975,0.00021095,2]
[339422969,1727603572187,-1803.8,0.00021095,2]
[339422970,1727603572204,-500.0,0.00021095,2]
[339422971,1727603572221,-257.12350111,0.00021095,2]
[339422972,1727603572237,-500.0,0.00021095,2]
[339422973,1727603572253,-500.0,0.00021095,2]
[339422974,1727603572269,-500.0,0.00021095,2]
[339422975,1727603572284,-500.0,0.00021095,2]
[339422976,1727603572303,-4201.32,0.00021095,2]
[339422977,1727603572319,-500.0,0.00021095,2]
[339422978,1727603572338,-567.74078106,0.00021095,2]
[339422979,1727603572355,-382.10079163,0.00021095,2]
[339422980,1727603572372,-500.0,0.00021095,2]
[339422981,1727603572388,-500.0,0.00021095,2]
[339422982,1727603572405,-500.0,0.00021095,2]
[339422983,1727603572421,-500.0,0.00021095,2]
[339422984,1727603572436,-500.0,0.00021095,2]
[339422985,1727603572453,-500.0,0.00021095,2]
[339422986,1727603572470,-500.0,0.00021095,2]
[339422987,1727603572485,-500.0,0.00021095,2]
[339422988,1727603572499,-500.0,0.00021095,2]
[339422989,1727603572516,-500.0,0.00021095,2]
[339422990,1727603572532,-620.78423548,0.00021095,2]
[339422991,1727603572549,-500.0,0.00021095,2]
[339422992,1727603572565,-845.95,0.00021095,2]
[339422993,1727603572582,-500.0,0.00021095,2]
[339422994,1727603572596,-530.7,0.00021095,2]
[339422995,1727603572612,-706.63,0.00021095,2]
[339422996,1727603572628,-944.6,0.00021095,2]
[339422997,1727603572646,-500.0,0.00021095,2]
[339422998,1727603572662,-822.81,0.00021095,2]
[339422999,1727603572677,-500.0,0.00021095,2]
[339423000,1727603572692,-500.0,0.00021095,2]
[339423001,1727603572707,-512.69,0.00021095,2]
[339423002,1727603572722,-500.0,0.00021095,2]
[339423003,1727603572738,-740.56,0.00021095,2]
[339423004,1727603572755,-500.0,0.00021095,2]
[339423005,1727603572770,-2084.73,0.00021095,2]
[339423006,1727603572787,-500.0,0.00021095,2]
[339423007,1727603572807,-500.0,0.00021095,2]
[339423008,1727603572826,-500.0,0.00021095,2]
[339423009,1727603572842,-500.0,0.00021095,2]
[339423010,1727603572860,-558.05657169,0.00021095,2]
[339423011,1727603572878,-500.0,0.00021095,2]
[339423012,1727603572892,-500.0,0.00021095,2]
[339423013,1727603572908,-632.66,0.00021095,2]
[339423014,1727603572923,-500.0,0.00021095,2]
[339423015,1727603572938,-500.0,0.00021095,2]
[339423016,1727603572953,-500.0,0.00021095,2]
[339423017,1727603572969,-389.71072555,0.00021095,2]
[339423018,1727603572984,-783.43,0.00021095,2]
[339423019,1727603573000,-500.0,0.00021095,2]
[339423020,1727603573014,-500.0,0.00021095,2]
[339423021,1727603573031,-500.0,0.00021095,2]
[339423022,1727603573048,-500.0,0.00021095,2]
[339423023,1727603573063,-591.77157906,0.00021095,2]
[339423024,1727603573078,-1316.7,0.00021095,2]
[339423025,1727603573093,-500.0,0.00021095,2]
[339423026,1727603573107,-1112.68,0.00021095,2]
[339423027,1727603573121,-500.0,0.00021095,2]
[339423028,1727603573137,-707.65,0.00021095,2]
[339423029,1727603573151,-3579.33,0.00021095,2]
[339423030,1727603573168,-500.0,0.00021095,2]
[339423031,1727603573185,-500.0,0.00021095,2]
[339423032,1727603573203,-2432.83,0.00021095,2]
[339423033,1727603573218,-611.98,0.00021095,2]
[339423034,1727603573234,-3092.55,0.00021095,2]
[339423035,1727603573249,-651.21,0.00021095,2]
[339423036,1727603573264,-500.0,0.00021095,2]
[339423037,1727603573278,-500.0,0.00021095,2]
[339423038,1727603573294,-500.0,0.00021095,2]
[339423039,1727603573310,-647.34,0.00021095,2]
[339423040,1727603573326,-500.0,0.00021095,2]
[339423041,1727603573340,-500.0,0.00021095,2]
[339423042,1727603573356,-500.0,0.00021095,2]
[339423043,1727603573370,-3970.58,0.00021095,2]
[339423044,1727603573387,-500.0,0.00021095,2]
[339423045,1727603573402,-650.41,0.00021095,2]
[339423046,1727603573417,-500.0,0.00021095,2]
[339423047,1727603573433,-500.0,0.00021095,2]
[339423048,1727603573450,-500.0,0.00021095,2]
[339423049,1727603573467,-1454.84,0.00021095,2]
[339423050,1727603573482,-500.0,0.00021095,2]
[339423051,1727603573497,-500.0,0.00021095,2]
[339423052,1727603573513,-424.34867235,0.00021095,2]
[339423053,1727603573527,-500.0,0.00021095,2]
[339423054,1727603573544,-500.0,0.00021095,2]
[339423055,1727603573560,-538.43037029,0.00021095,2]
[339423056,1727603573575,-500.0,0.00021095,2]
[339423057,1727603573591,-1060.87,0.00021095,2]
[339423058,1727603573604,-500.0,0.00021095,2]
[339423059,1727603573620,-1495.54,0.00021095,2]
[339423060,1727603573633,-500.0,0.00021095,2]
[339423061,1727603573647,-500.0,0.00021095,2]
[339423062,1727603573662,-500.0,0.00021095,2]
[339423063,1727603573676,-500.0,0.00021095,2]
[339423064,1727603573689,-500.0,0.00021095,2]
[339423065,1727603573703,-500.0,0.00021095,2]
[339423066,1727603573716,-583.48,0.00021095,2]
[339423067,1727603573729,-842.65,0.00021095,2]
[339423068,1727603573744,-514.76,0.00021095,2]
[339423069,1727603573758,-3479.64,0.00021095,2]
[339423070,1727603573773,-500.0,0.00021095,2]
[339423071,1727603573788,-500.0,0.00021095,2]
[339423072,1727603573805,-500.0,0.00021095,2]
[339423073,1727603573819,-529.6,0.00021095,2]
[339423074,1727603573836,-686.77,0.00021095,2]
[339423075,1727603573852,-2401.28,0.00021095,2]
[339423076,1727603573866,-500.0,0.00021095,2]
[339423077,1727603573880,-552.91358796,0.00021095,2]
[339423078,1727603573895,-500.0,0.00021095,2]
[339423079,1727603573911,-915.47,0.00021095,2]
[339423080,1727603573928,-500.0,0.00021095,2]
[339423081,1727603573943,-500.0,0.00021095,2]
[339423082,1727603573959,-500.0,0.00021095,2]
[339423083,1727603573976,-430.60122964,0.00021095,2]
[339423084,1727603573993,-638.07,0.00021095,2]
[339423085,1727603574008,-500.0,0.00021095,2]
[339423086,1727603574024,-1941.22,0.00021095,2]
[339423087,1727603574040,-500.0,0.00021095,2]
[339423088,1727603574056,-475.13374367,0.00021095,2]
[339423089,1727603574071,-625.83,0.00021095,2]
[339423090,1727603574087,-548.99,0.00021095,2]
[339423091,1727603574103,-500.0,0.00021095,2]
[339423092,1727603574121,-500.0,0.00021095,2]
[339423093,1727603574137,-500.0,0.00021095,2]
[339423094,1727603574152,-500.0,0.00021095,2]
[339423095,1727603574168,-716.25,0.00021095,2]
[339423096,1727603574184,-500.0,0.00021095,2]
[339423097,1727603574200,-500.0,0.00021095,2]
[339423098,1727603574215,-500.0,0.00021095,2]
[339423099,1727603574231,-500.0,0.00021095,2]
[339423100,1727603574247,-3000.0,0.000211,2]
[339423101,1727603574262,-3000.0,0.0002111,2]
[339423102,1727603574627,-3000.0,0.0002112,2]
[339423103,1727603574646,-250.0,0.00021121,2]
[339423104,1727603574657,-3000.0,0.0002113,2]
[339423105,1727603574670,-3000.0,0.0002114,2]
[339423106,1727603574682,-3000.0,0.0002115,2]
[339423107,1727603574692,-3000.0,0.0002116,2]
[339423108,1727603574702,-3000.0,0.0002117,2]
[339423109,1727603574713,-330.0,0.0002118,4]
[339423110,1727603574724,-3000.0,0.0002118,2]
[339423111,1727603574735,-3000.0,0.0002119,2]
[339423112,1727603574746,-506.80629038,0.000212,2]
[339423113,1727603574756,-3000.0,0.000212,2]
[339423114,1727603574765,-3000.0,0.0002121,2]
[339423115,1727603574776,-3000.0,0.0002122,2]
[339423116,1727603574789,-2000.0,0.0002122,2]
[339423117,1727603574801,-3000.0,0.0002123,2]
[339423118,1727603574811,-3000.0,0.0002124,2]
[339423119,1727603574821,-3000.0,0.0002125,2]
[339423120,1727603574831,-3000.0,0.0002126,2]
[339423121,1727603574841,-3000.0,0.0002127,2]
[339423122,1727603574851,-3000.0,0.0002128,2]
[339423123,1727603574862,-3000.0,0.0002129,2]
[339423124,1727603574873,-3000.0,0.000213,2]
[339423125,1727603574883,-3000.0,0.0002131,2]
[339423126,1727603574893,-3000.0,0.0002132,2]
[339423127,1727603574903,-3000.0,0.0002133,2]
[339423128,1727603574913,-3000.0,0.0002134,2]
[339423129,1727603574923,-3000.0,0.0002135,2]
[339423130,1727603574933,-500.0,0.00021369,2]
[339423131,1727603574945,-182.94865751,0.00021369,2]
[339423132,1727603574956,-500.0,0.00021369,2]
[339423133,1727603574968,-500.0,0.00021369,2]
[339423134,1727603574978,-765.39,0.00021369,2]
[339423135,1727603574989,-528.12,0.00021369,2]
[339423136,1727603575001,-500.0,0.00021369,2]
[339423137,1727603575010,-500.0,0.00021369,2]
[339423138,1727603575020,-500.0,0.00021369,2]
[339423139,1727603575030,-548.6,0.00021369,2]
[339423140,1727603575040,-500.0,0.00021369,2]